fUST/lending_fUST_20250623
["ID","MTS","AMOUNT","RATE_DAILY","PERIOD"]
[367062002,1750642247705,-524.02598587,0.00022,7]
[367062003,1750642247715,-213.59462818,0.00022,7]
[367062004,1750642247724,-846.39664074,0.00022,7]
[367062005,1750642247734,-12551.52821599,0.00022,7]
[367062006,1750642247744,-27989.63160814,0.00022,2]
[367062007,1750642247754,-154191.71231916,0.00022,4]
[367062008,1750642248379,-1399.32,0.00021907,10]
[367062009,1750642248389,-460.0,0.00021917,2]
[367062010,1750642248399,-4838.09527416,0.00022,4]
[367062011,1750642248426,-270.74,0.00022,4]
[367062012,1750642248548,-59.03525041,0.00022,4]
[367062013,1750642249031,-396.85678554,0.00021917,2]
[367062014,1750642249041,-463.06936662,0.00021917,2]
[367062015,1750642249051,-19472.21686974,0.00022,4]
[367062016,1750642249082,-9796.52564854,0.00022,4]
[367062017,1750642249495,-46.95529944,0.00021917,2]
[367062018,1750642249508,-413.04470056,0.00021917,2]
[367062019,1750642249520,-462.30522204,0.00021917,2]
[367062020,1750642249533,-590.24804413,0.00022,4]
[367062021,1750642249547,-1041.04,0.00022,4]
[367062022,1750642249560,-4459.64699422,0.00022,4]
[367062023,1750642254965,1411.0,0.00025,30]
[367062026,1750642719619,172.50648967,0.000222,69]
[367062027,1750643053044,1500.0,0.00025,30]
[367062028,1750643143112,-2119.35988499,0.000205,2]
[367062031,1750643253481,4000.0,0.00025,120]
[367062032,1750643254091,-1414.50011501,0.000205,2]
[367062033,1750643254112,-1200.0,0.00020586,2]
[367062034,1750643254134,-300.0,0.00020586,2]
[367062035,1750643254156,-300.0,0.00020586,2]
[367062036,1750643254176,-3602.50301041,0.00020587,5]
[367062038,1750643267408,199.287634,0.00013699,2]
[367062039,1750643287847,210.89291522,0.00018528,2]
[367062040,1750643345101,-199.287634,0.00020187,2]
[367062041,1750643345123,-233.18989347,0.00020551,2]
[367062042,1750643345147,-6397.49698959,0.00020587,5]
[367062043,1750643345170,-181.899762,0.00020608,2]
[367062044,1750643345191,-218.68983037,0.00020811,2]
[367062045,1750643345212,-300.0,0.00020909,2]
[367062046,1750643345233,-20000.0,0.0002091,5]
[367062047,1750643345254,-250.97863901,0.0002091,2]
[367062048,1750643345275,-500.0,0.0002091,2]
[367062049,1750643345296,-14715.09485156,0.00020911,2]
[367062050,1750643353139,-3237.01120014,0.00020911,2]
[367062051,1750643360121,-4978.66050716,0.00020911,2]
[367062052,1750643361095,-1969.23344114,0.00020911,2]
[367062053,1750643361116,-2431.98791749,0.00020911,7]
[367062054,1750643364624,268.07818267,0.00025,120]
[367062055,1750643368107,-17751.88057906,0.00020911,7]
[367062056,1750643368129,-213.59462818,0.00020911,7]
[367062057,1750643368148,-160.0,0.00020911,7]
[367062058,1750643368168,-524.02598587,0.00020911,7]
[367062059,1750643368188,-846.39664074,0.00020911,7]
[367062060,1750643368429,-7873.98392619,0.00020911,7]
[367062061,1750643368470,-2446.8351244,0.00020911,7]
[367062062,1750643368498,-2230.7091654,0.00020911,7]
[367062063,1750643368517,-160.0,0.00021,2]
[367062064,1750643368545,-2534.87902455,0.000214,5]
[367062065,1750643368571,-2534.87902442,0.000214,5]
[367062066,1750643368598,-2534.87902442,0.000214,5]
[367062069,1750643427697,162.02821,0.00021281,2]
[367062107,1750643432062,-2534.87902442,0.00021521,5]
[367062108,1750643432072,-444.71988057,0.00021522,2]
[367062109,1750643432081,-218.68983034,0.00021581,2]
[367062110,1750643432091,-378.06582332,0.0002161,2]
[367062111,1750643432100,-309.016,0.00021711,2]
[367062112,1750643432109,-2534.87902442,0.00021728,5]
[367062113,1750643432119,-1200.0,0.00021809,2]
[367062114,1750643432128,-500.0,0.0002181,2]
[367062115,1750643432137,-500.0,0.0002181,2]
[367062116,1750643432146,-239.96482798,0.0002181,2]
[367062117,1750643432155,-236.63413473,0.0002181,2]
[367062118,1750643432165,-500.0,0.0002181,2]
[367062119,1750643432177,-475.29059256,0.0002181,2]
[367062120,1750643432186,-500.0,0.0002181,2]
[367062121,1750643432196,-500.0,0.0002181,2]
[367062122,1750643432205,-1522.00072473,0.00021811,10]
[367062161,1750643438021,-8477.99927527,0.00021811,10]
[367062163,1750643438030,-213.59462818,0.00021811,10]
[367062165,1750643438040,-524.02598587,0.00021811,10]
[367062167,1750643438049,-846.39664074,0.00021811,10]
[367062169,1750643438059,-12551.52821599,0.00021811,10]
[367062171,1750643438070,-2339.54155823,0.00021817,2]
[367062173,1750643438080,-444.71988057,0.00021819,2]
[367062197,1750643438301,-633.47,0.00021907,3]
[367062199,1750643438311,-316.74,0.00021907,3]
[367062201,1750643438321,-158.37,0.00021907,3]
[367062203,1750643438330,-475.11,0.00021907,3]
[367062205,1750643438339,-1166.1,0.00021907,10]
[367062207,1750643438354,-971.75,0.00021907,10]
[367062209,1750643438364,-155.348,0.00021916,2]
[367062211,1750643438373,-229.35,0.00021916,2]
[367062213,1750643438382,-460.0,0.00021917,2]
[367062215,1750643438399,-431.16236284,0.00021917,2]
[367062217,1750643438408,-606.50134723,0.00021917,2]
[367062219,1750643438418,-460.0,0.00021917,2]
[367062221,1750643438429,-460.0,0.00021917,2]
[367062223,1750643438439,-460.0,0.00021917,2]
[367062225,1750643438449,-814.06,0.00021917,2]
[367062227,1750643438459,-460.0,0.00021917,2]
[367062229,1750643438469,-460.0,0.00021917,2]
[367062231,1750643438478,-460.0,0.00021917,2]
[367062233,1750643438486,-460.0,0.00021917,2]
[367062235,1750643438497,-460.0,0.00021917,2]
[367062237,1750643438506,-460.0,0.00021917,2]
[367062239,1750643438516,-460.0,0.00021917,2]
[367062241,1750643438525,-283.66359152,0.00021917,2]
[367062243,1750643438535,-490.864577,0.00021917,2]
[367062245,1750643438545,-460.0,0.00021917,2]
[367062247,1750643438554,-460.0,0.00021917,2]
[367062249,1750643438564,-460.0,0.00021917,2]
[367062251,1750643438573,-460.0,0.00021917,2]
[367062253,1750643438582,-460.0,0.00021917,2]
[367062255,1750643438592,-460.0,0.00021917,2]
[367062257,1750643438602,-460.0,0.00021917,2]
[367062259,1750643438612,-460.0,0.00021917,2]
[367062261,1750643438622,-581.96377743,0.00021917,2]
[367062264,1750643438643,-460.0,0.00021917,2]
[367062266,1750643438653,-460.0,0.00021917,2]
[367062268,1750643438664,-460.0,0.00021917,2]
[367062271,1750643438676,-464.039085,0.00021917,2]
[367062273,1750643438688,-460.0,0.00021917,2]
[367062275,1750643438698,-460.0,0.00021917,2]
[367062277,1750643438708,-460.0,0.00021917,2]
[367062279,1750643438718,-460.0,0.00021917,2]
[367062281,1750643438728,-460.0,0.00021917,2]
[367062283,1750643438739,-333.73846466,0.00021917,2]
[367062285,1750643438749,-170.76703588,0.00021917,2]
[367062287,1750643438759,-460.0,0.00021917,2]
[367062289,1750643438768,-460.0,0.00021917,2]
[367062291,1750643438779,-460.0,0.00021917,2]
[367062293,1750643438788,-460.0,0.00021917,2]
[367062295,1750643438798,-460.0,0.00021917,2]
[367062297,1750643438808,-460.0,0.00021917,2]
[367062299,1750643438818,-312.9862047,0.00021917,2]
[367062301,1750643438828,-464.20381267,0.00021917,2]
[367062304,1750643438838,-460.0,0.00021917,2]
[367062306,1750643438847,-460.0,0.00021917,2]
[367062308,1750643438857,-460.0,0.00021917,2]
[367062310,1750643438867,-460.0,0.00021917,2]
[367062312,1750643438876,-574.38350687,0.00021917,2]
[367062314,1750643438886,-460.0,0.00021917,2]
[367062316,1750643438895,-460.0,0.00021917,2]
[367062318,1750643438905,-380.98714988,0.00021917,2]
[367062320,1750643438915,-460.0,0.00021917,2]
[367062322,1750643438925,-460.0,0.00021917,2]
[367062324,1750643438935,-460.0,0.00021917,2]
[367062326,1750643438944,-460.0,0.00021917,2]
[367062328,1750643438954,-571.01,0.00021917,2]
[367062330,1750643438964,-500.0,0.00021917,2]
[367062332,1750643438973,-460.0,0.00021917,2]
[367062334,1750643438982,-565.9,0.00021917,2]
[367062336,1750643438992,-335.67082489,0.00021917,2]
[367062338,1750643439002,-308.64732531,0.00021917,2]
[367062340,1750643439011,-460.0,0.00021917,2]
[367062342,1750643439021,-460.0,0.00021917,2]
[367062344,1750643439031,-460.0,0.00021917,2]
[367062346,1750643439040,-380.84437219,0.00021917,2]
[367062349,1750643439051,-460.0,0.00021917,2]
[367062351,1750643439061,-460.0,0.00021917,2]
[367062353,1750643439071,-460.0,0.00021917,2]
[367062355,1750643439081,-465.88,0.00021917,2]
[367062357,1750643439097,-460.57791091,0.00021917,2]
[367062359,1750643439106,-460.0,0.00021917,2]
[367062361,1750643439116,-501.94,0.00021917,2]
[367062363,1750643439126,-460.0,0.00021917,2]
[367062365,1750643439135,-460.0,0.00021917,2]
[367062367,1750643439145,-460.0,0.00021917,2]
[367062369,1750643439154,-766.21,0.00021917,2]
[367062371,1750643439164,-581.43968787,0.00021917,2]
[367062373,1750643439173,-460.0,0.00021917,2]
[367062375,1750643439183,-460.0,0.00021917,2]
[367062377,1750643439192,-460.0,0.00021917,2]
[367062379,1750643439202,-1082.53,0.00021917,2]
[367062381,1750643439212,-601.8,0.00021917,2]
[367062383,1750643439222,-460.0,0.00021917,2]
[367062385,1750643439232,-460.0,0.00021917,2]
[367062387,1750643439241,-460.0,0.00021917,2]
[367062389,1750643439251,-460.0,0.00021917,2]
[367062392,1750643439264,-500.0,0.00021917,2]
[367062394,1750643439274,-610.1178443,0.00021917,2]
[367062396,1750643439283,-460.0,0.00021917,2]
[367062398,1750643439293,-464.32227468,0.00021917,2]
[367062400,1750643439303,-460.0,0.00021917,2]
[367062402,1750643439313,-460.0,0.00021917,2]
[367062404,1750643439323,-1033.98,0.00021917,2]
[367062406,1750643439333,-460.0,0.00021917,2]
[367062408,1750643439345,-832.82,0.00021917,2]
[367062410,1750643439357,-798.12,0.00021917,2]
[367062412,1750643439367,-622.71,0.00021917,2]
[367062415,1750643439379,-460.0,0.00021917,2]
[367062417,1750643439390,-460.0,0.00021917,2]
[367062419,1750643439400,-460.0,0.00021917,2]
[367062421,1750643439409,-460.0,0.00021917,2]
[367062423,1750643439420,-460.0,0.00021917,2]
[367062425,1750643439431,-500.0,0.00021917,2]
[367062427,1750643439441,-460.0,0.00021917,2]
[367062429,1750643439450,-460.0,0.00021917,2]
[367062431,1750643439460,-460.0,0.00021917,2]
[367062433,1750643439470,-460.0,0.00021917,2]
[367062435,1750643439480,-460.0,0.00021917,2]
[367062437,1750643439491,-460.0,0.00021917,2]
[367062439,1750643439500,-460.0,0.00021917,2]
[367062441,1750643439510,-460.0,0.00021917,2]
[367062443,1750643439520,-460.0,0.00021917,2]
[367062445,1750643439530,-460.0,0.00021917,2]
[367062447,1750643439540,-1004.42736303,0.00021917,2]
[367062450,1750643439550,-460.0,0.00021917,2]
[367062452,1750643439561,-460.0,0.00021917,2]
[367062454,1750643439571,-460.0,0.00021917,2]
[367062456,1750643439582,-460.0,0.00021917,2]
[367062458,1750643439592,-460.0,0.00021917,2]
[367062460,1750643439601,-460.0,0.00021917,2]
[367062463,1750643439612,-460.0,0.00021917,2]
[367062465,1750643439621,-460.0,0.00021917,2]
[367062467,1750643439630,-460.0,0.00021917,2]
[367062469,1750643439640,-460.0,0.00021917,2]
[367062471,1750643439650,-813.77,0.00021917,2]
[367062474,1750643439659,-460.0,0.00021917,2]
[367062476,1750643439668,-460.0,0.00021917,2]
[367062478,1750643439679,-460.0,0.00021917,2]
[367062480,1750643439689,-594.13,0.00021917,2]
[367062482,1750643439699,-460.0,0.00021917,2]
[367062484,1750643439708,-460.0,0.00021917,2]
[367062486,1750643439719,-460.0,0.00021917,2]
[367062488,1750643439729,-538.89,0.00021917,2]
[367062491,1750643439739,-460.0,0.00021917,2]
[367062493,1750643439749,-460.0,0.00021917,2]
[367062495,1750643439758,-460.0,0.00021917,2]
[367062497,1750643439769,-460.0,0.00021917,2]
[367062499,1750643439785,-460.0,0.00021917,2]
[367062501,1750643439794,-460.0,0.00021917,2]
[367062503,1750643439804,-883.44,0.00021917,2]
[367062505,1750643439813,-460.0,0.00021917,2]
[367062507,1750643439823,-460.0,0.00021917,2]
[367062509,1750643439833,-460.0,0.00021917,2]
[367062511,1750643439843,-517.98,0.00021917,2]
[367062513,1750643439852,-460.0,0.00021917,2]
[367062515,1750643439862,-460.0,0.00021917,2]
[367062517,1750643439872,-460.0,0.00021917,2]
[367062520,1750643439881,-460.0,0.00021917,2]
[367062522,1750643439892,-460.0,0.00021917,2]
[367062524,1750643439901,-660.85,0.00021917,2]
[367062526,1750643439911,-660.85,0.00021917,2]
[367062528,1750643439921,-660.85,0.00021917,2]
[367062530,1750643439931,-660.85,0.00021917,2]
[367062532,1750643439941,-660.85,0.00021917,2]
[367062534,1750643439951,-660.85,0.00021917,2]
[367062536,1750643439961,-660.85,0.00021917,2]
[367062538,1750643439970,-660.85,0.00021917,2]
[367062540,1750643439980,-660.85,0.00021917,2]
[367062542,1750643439991,-642.12,0.00021917,2]
[367062544,1750643440000,-660.85,0.00021917,2]
[367062546,1750643440010,-460.0,0.00021917,2]
[367062548,1750643440020,-660.85,0.00021917,2]
[367062550,1750643440029,-660.85,0.00021917,2]
[367062552,1750643440038,-660.85,0.00021917,2]
[367062554,1750643440048,-660.85,0.00021917,2]
[367062556,1750643440058,-660.85,0.00021917,2]
[367062558,1750643440067,-660.85,0.00021917,2]
[367062560,1750643440077,-660.85,0.00021917,2]
[367062562,1750643440086,-660.85,0.00021917,2]
[367062565,1750643440103,-660.85,0.00021917,2]
[367062568,1750643440120,-660.85,0.00021917,2]
[367062571,1750643440136,-660.85,0.00021917,2]
[367062573,1750643440151,-660.85,0.00021917,2]
[367062576,1750643440162,-660.85,0.00021917,2]
[367062578,1750643440177,-660.960239,0.00021917,2]
[367062581,1750643440190,-436.89342291,0.00021917,2]
[367062583,1750643440205,-460.0,0.00021917,2]
[367062586,1750643440219,-460.0,0.00021917,2]
[367062588,1750643440233,-460.0,0.00021917,2]
[367062590,1750643440246,-318.53502778,0.00021917,2]
[367062593,1750643440261,-460.0,0.00021917,2]
[367062595,1750643440275,-460.0,0.00021917,2]
[367062598,1750643440288,-460.0,0.00021917,2]
[367062601,1750643440304,-519.73,0.00021917,2]
[367062603,1750643440317,-460.0,0.00021917,2]
[367062606,1750643440333,-440.32705365,0.00021917,2]
[367062608,1750643440347,-512.02,0.00021917,2]
[367062610,1750643440360,-460.0,0.00021917,2]
[367062612,1750643440371,-741.77,0.00021917,2]
[367062615,1750643440382,-460.81367298,0.00021917,2]
[367062617,1750643440395,-460.0,0.00021917,2]
[367062619,1750643440408,-460.0,0.00021917,2]
[367062622,1750643440421,-460.0,0.00021917,2]
[367062624,1750643440436,-2114.65,0.00021917,2]
[367062627,1750643440449,-460.0,0.00021917,2]
[367062629,1750643440464,-1123.44,0.00021917,2]
[367062632,1750643440478,-460.0,0.00021917,2]
[367062633,1750643440493,-460.0,0.00021917,2]
[367062634,1750643440504,-460.0,0.00021917,2]
[367062635,1750643440515,-669.91,0.00021917,2]
[367062636,1750643440527,-460.0,0.00021917,2]
[367062637,1750643440540,-460.0,0.00021917,2]
[367062638,1750643440555,-1542.26,0.00021917,2]
[367062639,1750643440569,-460.0,0.00021917,2]
[367062640,1750643440579,-460.0,0.00021917,2]
[367062641,1750643440602,-460.0,0.00021917,2]
[367062642,1750643440623,-460.0,0.00021917,2]
[367062643,1750643440642,-775.63,0.00021917,2]
[367062644,1750643440654,-300.0,0.00021917,2]
[367062645,1750643440666,-460.0,0.00021917,2]
[367062646,1750643440679,-460.0,0.00021917,2]
[367062647,1750643440694,-1041.89,0.00021917,2]
[367062649,1750643440707,-460.0,0.00021917,2]
[367062650,1750643440722,-460.0,0.00021917,2]
[367062653,1750643440739,-460.0,0.00021917,2]
[367062655,1750643440755,-460.0,0.00021917,2]
[367062658,1750643440770,-460.0,0.00021917,2]
[367062661,1750643440796,-1967.96,0.00021917,2]
[367062664,1750643440810,-491.23,0.00021917,2]
[367062667,1750643440824,-1250.3,0.00021917,2]
[367062669,1750643440839,-807.79,0.00021917,2]
[367062672,1750643440852,-1313.51,0.00021917,2]
[367062674,1750643440866,-460.0,0.00021917,2]
[367062676,1750643440880,-460.0,0.00021917,2]
[367062679,1750643440893,-460.0,0.00021917,2]
[367062681,1750643440906,-460.0,0.00021917,2]
[367062684,1750643440918,-523.25,0.00021917,2]
[367062686,1750643440930,-460.0,0.00021917,2]
[367062688,1750643440944,-460.0,0.00021917,2]
[367062691,1750643440956,-460.0,0.00021917,2]
[367062693,1750643440970,-462.43581291,0.00021917,2]
[367062696,1750643440982,-460.0,0.00021917,2]
[367062698,1750643440994,-460.0,0.00021917,2]
[367062721,1750643441214,-545.93,0.00021917,2]
[367062724,1750643441227,-459.23073462,0.00021917,2]
[367062726,1750643441240,-471.25057955,0.00021917,2]
[367062728,1750643441253,-672.17,0.00021917,2]
[367062731,1750643441265,-460.0,0.00021917,2]
[367062733,1750643441277,-460.0,0.00021917,2]
[367062735,1750643441289,-460.0,0.00021917,2]
[367062738,1750643441301,-460.0,0.00021917,2]
[367062740,1750643441313,-460.0,0.00021917,2]
[367062742,1750643441324,-460.0,0.00021917,2]
[367062744,1750643441336,-460.0,0.00021917,2]
[367062746,1750643441351,-460.0,0.00021917,2]
[367062749,1750643441363,-3341.96,0.00021917,2]
[367062751,1750643441375,-2241.89,0.00021917,2]
[367062753,1750643441386,-538.39513772,0.00021917,2]
[367062756,1750643441399,-461.98026201,0.00021917,2]
[367062758,1750643441411,-460.0,0.00021917,2]
[367062760,1750643441424,-460.76598969,0.00021917,2]
[367062762,1750643441437,-460.0,0.00021917,2]
[367062765,1750643441449,-460.0,0.00021917,2]
[367062767,1750643441461,-460.0,0.00021917,2]
[367062769,1750643441472,-1132.12,0.00021917,2]
[367062771,1750643441484,-460.0,0.00021917,2]
[367062774,1750643441495,-460.0,0.00021917,2]
[367062776,1750643441507,-460.0,0.00021917,2]
[367062778,1750643441518,-595.97,0.00021917,2]
[367062780,1750643441530,-2259.5,0.00021917,2]
[367062782,1750643441542,-460.0,0.00021917,2]
[367062784,1750643441554,-923.79,0.00021917,2]
[367062787,1750643441566,-460.0,0.00021917,2]
[367062789,1750643441577,-936.9,0.00021917,2]
[367062791,1750643441589,-1155.5,0.00021917,2]
[367062793,1750643441601,-460.0,0.00021917,2]
[367062795,1750643441613,-460.0,0.00021917,2]
[367062798,1750643441625,-460.0,0.00021917,2]
[367062800,1750643441636,-460.0,0.00021917,2]
[367062802,1750643441648,-460.0,0.00021917,2]
[367062804,1750643441659,-643.45,0.00021917,2]
[367062806,1750643441671,-1457.46,0.00021917,2]
[367062809,1750643441683,-460.0,0.00021917,2]
[367062811,1750643441695,-854.07,0.00021917,2]
[367062813,1750643441707,-1409.19,0.00021917,2]
[367062815,1750643441718,-460.0,0.00021917,2]
[367062818,1750643441729,-460.0,0.00021917,2]
[367062820,1750643441740,-575.32,0.00021917,2]
[367062822,1750643441752,-742.73,0.00021917,2]
[367062824,1750643441763,-1171.94,0.00021917,2]
[367062826,1750643441776,-460.0,0.00021917,2]
[367062829,1750643441792,-460.0,0.00021917,2]
[367062832,1750643441807,-460.0,0.00021917,2]
[367062834,1750643441821,-379.43417709,0.00021917,2]
[367062837,1750643441835,-460.0,0.00021917,2]
[367062839,1750643441850,-460.0,0.00021917,2]
[367062842,1750643441863,-607.82971585,0.00021917,2]
[367062844,1750643441876,-535.93,0.00021917,2]
[367062846,1750643441889,-460.0,0.00021917,2]
[367062849,1750643441901,-193.79483527,0.00021917,2]
[367062851,1750643441913,-460.0,0.00021917,2]
[367062853,1750643441926,-460.0,0.00021917,2]
[367062856,1750643441941,-816.03,0.00021917,2]
[367062858,1750643441954,-759.94,0.00021917,2]
[367062860,1750643441966,-460.0,0.00021917,2]
[367062863,1750643441980,-1294.68,0.00021917,2]
[367062865,1750643441992,-460.0,0.00021917,2]
[367062867,1750643442004,-460.0,0.00021917,2]
[367062870,1750643442019,-460.0,0.00021917,2]
[367062872,1750643442031,-460.0,0.00021917,2]
[367062874,1750643442043,-453.31591758,0.00021917,2]
[367062877,1750643442055,-460.0,0.00021917,2]
[367062879,1750643442067,-388.7496603,0.00021917,2]
[367062881,1750643442079,-460.0,0.00021917,2]
[367062883,1750643442091,-1820.91,0.00021917,2]
[367062886,1750643442103,-460.0,0.00021917,2]
[367062888,1750643442115,-460.0,0.00021917,2]
[367062890,1750643442127,-460.0,0.00021917,2]
[367062892,1750643442139,-460.0,0.00021917,2]
[367062895,1750643442151,-460.0,0.00021917,2]
[367062897,1750643442162,-460.0,0.00021917,2]
[367062899,1750643442174,-460.0,0.00021917,2]
[367062901,1750643442188,-460.0,0.00021917,2]
[367062904,1750643442200,-460.0,0.00021917,2]
[367062906,1750643442212,-460.0,0.00021917,2]
[367062908,1750643442224,-490.08,0.00021917,2]
[367062910,1750643442235,-460.0,0.00021917,2]
[367062913,1750643442247,-460.0,0.00021917,2]
[367062915,1750643442259,-1894.89,0.00021917,2]
[367062917,1750643442270,-1016.39,0.00021917,2]
[367062919,1750643442282,-460.0,0.00021917,2]
[367062922,1750643442293,-460.0,0.00021917,2]
[367062924,1750643442304,-1587.34,0.00021917,2]
[367062926,1750643442315,-460.0,0.00021917,2]
[367062928,1750643442328,-460.0,0.00021917,2]
[367062931,1750643442339,-460.0,0.00021917,2]
[367062933,1750643442354,-491.44,0.00021917,2]
[367062935,1750643442366,-467.32,0.00021917,2]
[367062937,1750643442378,-428.30180076,0.00021917,2]
[367062940,1750643442390,-500.0,0.00021917,2]
[367062942,1750643442401,-460.0,0.00021917,2]
[367062944,1750643442412,-500.0,0.00021917,2]
[367062946,1750643442426,-500.0,0.00021917,2]
[367062948,1750643442438,-500.0,0.00021917,2]
[367062951,1750643442449,-601.47801848,0.00021917,2]
[367062953,1750643442461,-482.19406273,0.00021917,2]
[367062955,1750643442472,-460.0,0.00021917,2]
[367062957,1750643442483,-460.0,0.00021917,2]
[367062959,1750643442493,-460.0,0.00021917,2]
[367062961,1750643442503,-586.13,0.00021917,2]
[367062963,1750643442513,-460.0,0.00021917,2]
[367062965,1750643442522,-460.0,0.00021917,2]
[367062967,1750643442532,-863.91,0.00021917,2]
[367062969,1750643442541,-461.03255266,0.00021917,2]
[367062971,1750643442551,-460.0,0.00021917,2]
[367063005,1750643442854,-1424.57,0.00021917,2]
[367063009,1750643442882,-460.0,0.00021917,2]
[367063012,1750643442901,-460.0,0.00021917,2]
[367063014,1750643442912,-460.0,0.00021917,2]
[367063017,1750643442922,-1144.21,0.00021917,2]
[367063019,1750643442933,-460.0,0.00021917,2]
[367063021,1750643442943,-460.0,0.00021917,2]
[367063023,1750643442951,-460.0,0.00021917,2]
[367063024,1750643442961,-460.0,0.00021917,2]
[367063026,1750643442970,-460.0,0.00021917,2]
[367063028,1750643442979,-1569.52,0.00021917,2]
[367063030,1750643442988,-500.0,0.00021917,2]
[367063032,1750643442997,-501.88,0.00021917,2]
[367063034,1750643443007,-460.0,0.00021917,2]
[367063036,1750643443016,-570.78,0.00021917,2]
[367063038,1750643443025,-957.43,0.00021917,2]
[367063040,1750643443034,-460.0,0.00021917,2]
[367063042,1750643443043,-460.0,0.00021917,2]
[367063044,1750643443052,-518.61,0.00021917,2]
[367063046,1750643443062,-460.0,0.00021917,2]
[367063048,1750643443071,-326.63546502,0.00021917,2]
[367063050,1750643443081,-1139.15,0.00021917,2]
[367063052,1750643443090,-460.0,0.00021917,2]
[367063054,1750643443099,-2226.8,0.00021917,2]
[367063056,1750643443108,-460.0,0.00021917,2]
[367063058,1750643443118,-497.73,0.00021917,2]
[367063060,1750643443127,-460.0,0.00021917,2]
[367063062,1750643443136,-150.67399097,0.00021917,2]
[367063064,1750643443145,-460.0,0.00021917,2]
[367063066,1750643443154,-460.0,0.00021917,2]
[367063068,1750643443164,-460.0,0.00021917,2]
[367063070,1750643443174,-460.0,0.00021917,2]
[367063072,1750643443184,-460.0,0.00021917,2]
[367063074,1750643443193,-460.0,0.00021917,2]
[367063076,1750643443203,-460.0,0.00021917,2]
[367063078,1750643443213,-460.0,0.00021917,2]
[367063080,1750643443223,-460.0,0.00021917,2]
[367063082,1750643443232,-460.0,0.00021917,2]
[367063084,1750643443242,-460.0,0.00021917,2]
[367063086,1750643443252,-460.0,0.00021917,2]
[367063088,1750643443261,-460.0,0.00021917,2]
[367063091,1750643443271,-460.0,0.00021917,2]
[367063093,1750643443281,-460.0,0.00021917,2]
[367063095,1750643443291,-460.0,0.00021917,2]
[367063096,1750643443301,-460.0,0.00021917,2]
[367063098,1750643443310,-460.0,0.00021917,2]
[367063100,1750643443320,-460.0,0.00021917,2]
[367063103,1750643443331,-460.0,0.00021917,2]
[367063105,1750643443341,-460.0,0.00021917,2]
[367063107,1750643443355,-460.0,0.00021917,2]
[367063109,1750643443365,-800.92,0.00021917,2]
[367063111,1750643443374,-3965.48,0.00021917,2]
[367063113,1750643443384,-460.0,0.00021917,2]
[367063115,1750643443394,-460.0,0.00021917,2]
[367063117,1750643443403,-460.0,0.00021917,2]
[367063119,1750643443413,-445.06035176,0.00021917,2]
[367063121,1750643443423,-460.0,0.00021917,2]
[367063123,1750643443433,-460.0,0.00021917,2]
[367063125,1750643443442,-460.0,0.00021917,2]
[367063127,1750643443451,-634.62,0.00021917,2]
[367063129,1750643443461,-494.37346474,0.00021917,2]
[367063131,1750643443470,-460.0,0.00021917,2]